[Event "*** Titled Tuesday Blitz"]
[Site "Chess.com"]
[Date "2019.01.01"]
[Round "8"]
[White "HouseOfDurin"]
[Black "Fins0905"]
[Result "0-1"]
[WhiteElo "1865"]
[BlackElo "2563"]
[TimeControl "180+2"]
[EndTime "14:55:49 PST"]
[Termination "Fins0905 won on time"]

1. d4 {[%clk 0:03:01.9]} 1... d5 {[%clk 0:02:59.5]} 2. Bg5 {[%clk 0:03:02.8]}
2... h6 {[%clk 0:02:59.4]} 3. Bh4 {[%clk 0:03:03.6]} 3... c6 {[%clk 0:03:00.4]}
4. e3 {[%clk 0:03:03.6]} 4... Qb6 {[%clk 0:03:01.2]} 5. b3 {[%clk 0:03:04.1]}
5... Bf5 {[%clk 0:03:01.4]} 6. Bd3 {[%clk 0:03:04.5]} 6... Bxd3 {[%clk
0:03:02.2]} 7. Qxd3 {[%clk 0:03:06.4]} 7... e6 {[%clk 0:03:02.4]} 8. Nd2 {[%clk
0:03:05.5]} 8... Be7 {[%clk 0:03:03.2]} 9. Bg3 {[%clk 0:03:04.8]} 9... Nf6
{[%clk 0:03:03.2]} 10. Ne2 {[%clk 0:02:56.6]} 10... O-O {[%clk 0:03:02.7]} 11.
O-O {[%clk 0:02:54.9]} 11... c5 {[%clk 0:03:01.7]} 12. c4 {[%clk 0:02:52.3]}
12... Nc6 {[%clk 0:03:01.1]} 13. a3 {[%clk 0:02:44]} 13... cxd4 {[%clk
0:02:49.2]} 14. exd4 {[%clk 0:02:40.4]} 14... dxc4 {[%clk 0:02:47.1]} 15. Nxc4
{[%clk 0:02:24.3]} 15... Qa6 {[%clk 0:02:47.3]} 16. Rfd1 {[%clk 0:02:11.2]}
16... Rfd8 {[%clk 0:02:47.1]} 17. Ne5 {[%clk 0:01:42]} 17... Qxd3 {[%clk
0:02:39.9]} 18. Rxd3 {[%clk 0:01:42.5]} 18... Nxe5 {[%clk 0:02:31.1]} 19. Bxe5
{[%clk 0:01:44.4]} 19... Rac8 {[%clk 0:02:26.3]} 20. b4 {[%clk 0:01:25.3]} 20...
Rc2 {[%clk 0:02:22.2]} 21. Kf1 {[%clk 0:01:25.7]} 21... Rdc8 {[%clk 0:02:07.4]}
22. Rad1 {[%clk 0:01:13.6]} 22... Nd5 {[%clk 0:01:53.1]} 23. R3d2 {[%clk
0:00:49.2]} 23... Bg5 {[%clk 0:01:45.9]} 24. f4 {[%clk 0:00:39.2]} 24... Be7
{[%clk 0:01:04.2]} 25. Rxc2 {[%clk 0:00:21.8]} 25... Rxc2 {[%clk 0:01:02.9]} 26.
Rc1 {[%clk 0:00:21]} 26... Ra2 {[%clk 0:00:52.5]} 27. Rc8+ {[%clk 0:00:14.3]}
27... Kh7 {[%clk 0:00:53.5]} 28. Nc3 {[%clk 0:00:14.5]} 28... Ne3+ {[%clk
0:00:32.2]} 29. Kg1 {[%clk 0:00:11.7]} 29... Rxg2+ {[%clk 0:00:31.9]} 30. Kh1
{[%clk 0:00:12.5]} 30... Rc2 {[%clk 0:00:32.4]} 31. h3 {[%clk 0:00:12]} 31...
Bh4 {[%clk 0:00:25.5]} 32. Rc7 {[%clk 0:00:11.2]} 32... Bg3 {[%clk 0:00:21.9]}
33. Nd5 {[%clk 0:00:04.1]} 33... exd5 {[%clk 0:00:18.5]} 34. Rxc2 {[%clk
0:00:04.7]} 34... Nxc2 {[%clk 0:00:20.4]} 35. Bb8 {[%clk 0:00:04.7]} 35... a6
{[%clk 0:00:20.5]} 36. Kg2 {[%clk 0:00:05.7]} 36... Bh4 {[%clk 0:00:19.4]} 37.
Bd6 {[%clk 0:00:04.4]} 37... Nxd4 {[%clk 0:00:19.8]} 0-1

[Event "*** Titled Tuesday Blitz"]
[Site "Chess.com"]
[Date "2019.01.01"]
[Round "8"]
[White "TigranLPetrosyan"]
[Black "Bigfish1995"]
[Result "1-0"]
[WhiteElo "2855"]
[BlackElo "2909"]
[TimeControl "180+2"]
[EndTime "14:55:54 PST"]
[Termination "TigranLPetrosyan won by resignation"]

1. g3 {[%clk 0:03:01.9]} 1... d5 {[%clk 0:02:59.7]} 2. Bg2 {[%clk 0:02:59]} 2...
c6 {[%clk 0:03:00.7]} 3. Nf3 {[%clk 0:02:54.8]} 3... Nf6 {[%clk 0:02:57.4]} 4.
c4 {[%clk 0:02:50.5]} 4... g6 {[%clk 0:02:52]} 5. cxd5 {[%clk 0:02:50.8]} 5...
cxd5 {[%clk 0:02:53.1]} 6. d4 {[%clk 0:02:52.7]} 6... Bg7 {[%clk 0:02:54.1]} 7.
Nc3 {[%clk 0:02:54.6]} 7... O-O {[%clk 0:02:55.1]} 8. Ne5 {[%clk 0:02:53]} 8...
e6 {[%clk 0:02:37.7]} 9. O-O {[%clk 0:02:52.2]} 9... Nfd7 {[%clk 0:02:38.7]} 10.
f4 {[%clk 0:02:53.1]} 10... Nb6 {[%clk 0:02:39.6]} 11. b3 {[%clk 0:02:50.9]}
11... Bd7 {[%clk 0:02:37.5]} 12. a4 {[%clk 0:02:49.4]} 12... Nc6 {[%clk
0:02:18.1]} 13. Ba3 {[%clk 0:02:42.7]} 13... Re8 {[%clk 0:02:16.2]} 14. Rc1
{[%clk 0:02:35.9]} 14... a6 {[%clk 0:02:13.9]} 15. Qd2 {[%clk 0:02:25.5]} 15...
f6 {[%clk 0:01:52.9]} 16. Nd3 {[%clk 0:02:18]} 16... Nxd4 {[%clk 0:01:36.6]} 17.
Nc5 {[%clk 0:02:16.1]} 17... Nc6 {[%clk 0:01:36.7]} 18. Nxb7 {[%clk 0:01:53.1]}
18... Qb8 {[%clk 0:01:37.4]} 19. Nc5 {[%clk 0:01:52.6]} 19... Bc8 {[%clk
0:01:22.4]} 20. e4 {[%clk 0:01:52.5]} 20... d4 {[%clk 0:01:15.7]} 21. Ne2 {[%clk
0:01:43]} 21... e5 {[%clk 0:01:15.1]} 22. fxe5 {[%clk 0:01:41.2]} 22... fxe5
{[%clk 0:01:10.4]} 23. Nd3 {[%clk 0:01:42.1]} 23... Nd8 {[%clk 0:01:02.8]} 24.
Rc2 {[%clk 0:01:41.5]} 24... Be6 {[%clk 0:01:00.4]} 25. Nc5 {[%clk 0:01:32.8]}
25... Bf7 {[%clk 0:00:59.3]} 26. Qd3 {[%clk 0:01:25.4]} 26... Ne6 {[%clk
0:00:38.5]} 27. Nxa6 {[%clk 0:01:19.9]} 27... Qb7 {[%clk 0:00:37.1]} 28. Nc5
{[%clk 0:01:19.6]} 28... Nxc5 {[%clk 0:00:38.2]} 29. Bxc5 {[%clk 0:01:17.1]}
29... Qa6 {[%clk 0:00:21.5]} 30. Qxa6 {[%clk 0:01:09.7]} 30... Rxa6 {[%clk
0:00:23.4]} 31. Nc1 {[%clk 0:01:11.5]} 31... Rc8 {[%clk 0:00:22.8]} 32. Rff2
{[%clk 0:01:07.6]} 32... Nd7 {[%clk 0:00:20.5]} 33. Bh3 {[%clk 0:00:58.3]} 33...
Nxc5 {[%clk 0:00:10.1]} 34. Bxc8 {[%clk 0:00:58.2]} 34... Rc6 {[%clk 0:00:09]}
35. Bb7 {[%clk 0:00:48.6]} 35... Rb6 {[%clk 0:00:08.4]} 36. Rxc5 {[%clk
0:00:48.3]} 36... Rxb7 {[%clk 0:00:09.9]} 37. Rc8+ {[%clk 0:00:46.5]} 37... Bf8
{[%clk 0:00:10.8]} 38. Nd3 {[%clk 0:00:43.5]} 38... Re7 {[%clk 0:00:06.3]} 39.
a5 {[%clk 0:00:43.8]} 39... Kg7 {[%clk 0:00:07.1]} 40. a6 {[%clk 0:00:45.2]}
40... Bxb3 {[%clk 0:00:07.7]} 41. Rfxf8 {[%clk 0:00:36.4]} 1-0

[Event "*** Titled Tuesday Blitz"]
[Site "Chess.com"]
[Date "2019.01.01"]
[Round "8"]
[White "JSMastropiero"]
[Black "julinha97"]
[Result "1-0"]
[WhiteElo "2276"]
[BlackElo "2105"]
[TimeControl "180+2"]
[EndTime "14:56:01 PST"]
[Termination "JSMastropiero won by resignation"]

1. d4 {[%clk 0:03:00.8]} 1... Nf6 {[%clk 0:03:00.7]} 2. c4 {[%clk 0:03:01.4]}
2... g6 {[%clk 0:03:00.6]} 3. Nc3 {[%clk 0:03:01.9]} 3... Bg7 {[%clk 0:03:00.3]}
4. e4 {[%clk 0:03:02.1]} 4... d6 {[%clk 0:03:01.6]} 5. f3 {[%clk 0:03:02.7]}
5... O-O {[%clk 0:03:02.4]} 6. Nge2 {[%clk 0:03:03]} 6... c5 {[%clk 0:02:57.4]}
7. d5 {[%clk 0:03:03.2]} 7... e6 {[%clk 0:02:58.2]} 8. Ng3 {[%clk 0:03:03.5]}
8... exd5 {[%clk 0:02:57.4]} 9. cxd5 {[%clk 0:03:04.8]} 9... h5 {[%clk
0:02:58.4]} 10. Bg5 {[%clk 0:03:04.4]} 10... a6 {[%clk 0:02:56.9]} 11. a4 {[%clk
0:03:04.2]} 11... Re8 {[%clk 0:02:57.8]} 12. Be2 {[%clk 0:03:03.6]} 12... Qc7
{[%clk 0:02:46.9]} 13. Qd2 {[%clk 0:03:02.1]} 13... Nbd7 {[%clk 0:02:46.3]} 14.
O-O {[%clk 0:03:01]} 14... c4 {[%clk 0:02:46.1]} 15. Rfc1 {[%clk 0:02:55.8]}
15... Rb8 {[%clk 0:02:29.2]} 16. Be3 {[%clk 0:02:49.1]} 16... b5 {[%clk
0:02:28]} 17. axb5 {[%clk 0:02:50.2]} 17... axb5 {[%clk 0:02:29.8]} 18. b4
{[%clk 0:02:51.2]} 18... h4 {[%clk 0:02:24.2]} 19. Nh1 {[%clk 0:02:46.4]} 19...
Ne5 {[%clk 0:02:00.2]} 20. Nf2 {[%clk 0:02:43.8]} 20... Nh5 {[%clk 0:01:49.1]}
21. f4 {[%clk 0:02:37.3]} 21... Nd7 {[%clk 0:01:32.4]} 22. Bxh5 {[%clk
0:02:33.2]} 22... gxh5 {[%clk 0:01:32.6]} 23. Bd4 {[%clk 0:02:24.2]} 23... Bxd4
{[%clk 0:01:24.9]} 24. Qxd4 {[%clk 0:02:24]} 24... Qb6 {[%clk 0:01:26.3]} 25.
Qd2 {[%clk 0:01:24.4]} 25... Nf6 {[%clk 0:01:25.8]} 26. f5 {[%clk 0:01:17.4]}
26... Nxe4 {[%clk 0:01:17.3]} 27. Nxe4 {[%clk 0:01:16.7]} 27... Rxe4 {[%clk
0:01:19.2]} 28. Qg5+ {[%clk 0:01:17.6]} 28... Kf8 {[%clk 0:01:18.6]} 29. f6
{[%clk 0:01:12.4]} 29... Re2 {[%clk 0:01:11.7]} 30. Qg7+ {[%clk 0:01:02.2]}
30... Ke8 {[%clk 0:01:12.6]} 31. Qg8+ {[%clk 0:00:58.9]} 31... Kd7 {[%clk
0:01:14.1]} 32. Qxf7+ {[%clk 0:01:00.1]} 32... Kd8 {[%clk 0:01:15.6]} 33. Rf1
{[%clk 0:00:54.6]} 33... Bd7 {[%clk 0:01:11.2]} 34. Qxh5 {[%clk 0:00:48.4]}
34... Qe3 {[%clk 0:01:06.1]} 35. f7 {[%clk 0:00:40.7]} 35... Kc7 {[%clk
0:01:07.4]} 36. Ra7+ {[%clk 0:00:38.1]} 36... Kb6 {[%clk 0:00:49.6]} 37. Rxd7
{[%clk 0:00:37.7]} 37... Rxf2 {[%clk 0:00:50.3]} 38. Rxf2 {[%clk 0:00:33.2]}
38... Qe1+ {[%clk 0:00:51.4]} 39. Rf1 {[%clk 0:00:33.8]} 39... Qe3+ {[%clk
0:00:51.4]} 40. Kh1 {[%clk 0:00:34.8]} 40... c3 {[%clk 0:00:50.6]} 41. Rxd6+
{[%clk 0:00:31.4]} 41... Kb7 {[%clk 0:00:45.3]} 42. Qg6 {[%clk 0:00:21.1]} 42...
Rc8 {[%clk 0:00:40.2]} 43. Rd7+ {[%clk 0:00:21.3]} 43... Kb8 {[%clk 0:00:39.3]}
44. Qd6+ {[%clk 0:00:21.1]} 44... Ka8 {[%clk 0:00:36.9]} 45. Ra1+ {[%clk
0:00:22.4]} 1-0

[Event "*** Titled Tuesday Blitz"]
[Site "Chess.com"]
[Date "2019.01.01"]
[Round "8"]
[White "Zarikovs1999"]
[Black "Makalexa"]
[Result "1-0"]
[WhiteElo "2257"]
[BlackElo "2137"]
[TimeControl "180+2"]
[EndTime "14:56:02 PST"]
[Termination "Zarikovs1999 won on time"]

1. Nf3 {[%clk 0:03:01.9]} 1... Nf6 {[%clk 0:02:58.1]} 2. c4 {[%clk 0:03:01.8]}
2... g6 {[%clk 0:02:59.3]} 3. Nc3 {[%clk 0:03:02.2]} 3... c5 {[%clk 0:02:59.5]}
4. d4 {[%clk 0:03:02.2]} 4... cxd4 {[%clk 0:02:56.9]} 5. Nxd4 {[%clk 0:03:04.1]}
5... Nc6 {[%clk 0:02:57.9]} 6. g3 {[%clk 0:03:03.2]} 6... Bg7 {[%clk 0:02:58.2]}
7. Bg2 {[%clk 0:03:04.2]} 7... O-O {[%clk 0:02:57.4]} 8. O-O {[%clk 0:03:05.2]}
8... Nxd4 {[%clk 0:02:55.6]} 9. Qxd4 {[%clk 0:03:04.9]} 9... d6 {[%clk
0:02:56.8]} 10. Qd3 {[%clk 0:02:57.7]} 10... Bf5 {[%clk 0:02:55.8]} 11. e4
{[%clk 0:02:56.2]} 11... Bc8 {[%clk 0:02:54]} 12. b3 {[%clk 0:02:51.6]} 12...
Nd7 {[%clk 0:02:54.2]} 13. Bb2 {[%clk 0:02:51.3]} 13... Nc5 {[%clk 0:02:49.6]}
14. Qe2 {[%clk 0:02:51.9]} 14... a5 {[%clk 0:02:47.6]} 15. Nd5 {[%clk
0:02:49.9]} 15... Bd7 {[%clk 0:02:47.6]} 16. Bxg7 {[%clk 0:02:48.8]} 16... Kxg7
{[%clk 0:02:48.6]} 17. e5 {[%clk 0:02:50.4]} 17... Bc6 {[%clk 0:02:46]} 18. exd6
{[%clk 0:02:44]} 18... exd6 {[%clk 0:02:13]} 19. Qb2+ {[%clk 0:02:36.7]} 19...
f6 {[%clk 0:02:10]} 20. Qd4 {[%clk 0:02:33.4]} 20... Rf7 {[%clk 0:02:09.5]} 21.
Rfe1 {[%clk 0:02:32.5]} 21... Bxd5 {[%clk 0:02:08.5]} 22. Bxd5 {[%clk
0:02:32.4]} 22... Re7 {[%clk 0:02:09.5]} 23. Kg2 {[%clk 0:02:29.5]} 23... Qd7
{[%clk 0:02:04.9]} 24. Rxe7+ {[%clk 0:02:17.4]} 24... Qxe7 {[%clk 0:02:05.6]}
25. Rd1 {[%clk 0:02:07]} 25... Re8 {[%clk 0:02:00.4]} 26. Qd2 {[%clk 0:02:07.7]}
26... b6 {[%clk 0:01:58.8]} 27. Bf3 {[%clk 0:02:07.4]} 27... Ne4 {[%clk
0:01:53.9]} 28. Qe3 {[%clk 0:02:01.9]} 28... f5 {[%clk 0:01:32.4]} 29. Bxe4
{[%clk 0:02:00.1]} 29... fxe4 {[%clk 0:01:33.3]} 30. Qxb6 {[%clk 0:01:58.1]}
30... e3 {[%clk 0:01:05.6]} 31. Qd4+ {[%clk 0:01:56.1]} 31... Kf7 {[%clk
0:00:54.9]} 32. Qxe3 {[%clk 0:01:47.5]} 32... Qxe3 {[%clk 0:00:55.3]} 33. fxe3
{[%clk 0:01:48.4]} 33... Rxe3 {[%clk 0:00:56.7]} 34. Rxd6 {[%clk 0:01:42.6]}
34... Re2+ {[%clk 0:00:57.5]} 35. Kh3 {[%clk 0:01:43.8]} 35... Rxa2 {[%clk
0:00:55.8]} 36. Rd7+ {[%clk 0:01:44.2]} 36... Ke6 {[%clk 0:00:22]} 37. Rxh7
{[%clk 0:01:43.8]} 37... Rb2 {[%clk 0:00:22.9]} 38. Ra7 {[%clk 0:01:37.3]} 38...
Rxb3 {[%clk 0:00:23.2]} 39. Rxa5 {[%clk 0:01:38.2]} 39... Rc3 {[%clk 0:00:24.3]}
40. Rg5 {[%clk 0:01:38.2]} 40... Kf6 {[%clk 0:00:24.8]} 41. Rc5 {[%clk
0:01:38.7]} 41... Kg7 {[%clk 0:00:24.4]} 42. Kg4 {[%clk 0:01:38.1]} 42... Kh6
{[%clk 0:00:23.7]} 43. h4 {[%clk 0:01:39.4]} 43... Rc1 {[%clk 0:00:22.4]} 44.
Rc7 {[%clk 0:01:40.2]} 44... Rc3 {[%clk 0:00:20.3]} 45. Kf4 {[%clk 0:01:38.2]}
45... Rd3 {[%clk 0:00:15.7]} 46. c5 {[%clk 0:01:32.5]} 46... Rc3 {[%clk
0:00:12.4]} 47. c6 {[%clk 0:01:31.1]} 47... Rc4+ {[%clk 0:00:13.6]} 48. Ke5
{[%clk 0:01:31.8]} 48... Rc3 {[%clk 0:00:14.2]} 49. Rc8 {[%clk 0:01:29.3]} 49...
Rxg3 {[%clk 0:00:12.4]} 50. Rh8+ {[%clk 0:01:29.9]} 50... Kg7 {[%clk 0:00:12.5]}
51. c7 {[%clk 0:01:31.1]} 51... Re3+ {[%clk 0:00:13.3]} 52. Kf4 {[%clk
0:01:31.1]} 52... Rc3 {[%clk 0:00:04.3]} 53. c8=Q {[%clk 0:01:31.5]} 53... g5+
{[%clk 0:00:03.1]} 54. hxg5 {[%clk 0:01:28.6]} 54... Rf3+ {[%clk 0:00:02.3]} 55.
Kxf3 {[%clk 0:01:28.9]} 1-0

[Event "*** Titled Tuesday Blitz"]
[Site "Chess.com"]
[Date "2019.01.01"]
[Round "8"]
[White "albi1999"]
[Black "Chessmatus"]
[Result "1-0"]
[WhiteElo "2455"]
[BlackElo "2189"]
[TimeControl "180+2"]
[EndTime "14:56:13 PST"]
[Termination "albi1999 won by resignation"]

1. d4 {[%clk 0:03:01.9]} 1... Nf6 {[%clk 0:02:59.3]} 2. c4 {[%clk 0:03:00]} 2...
e6 {[%clk 0:03:00.5]} 3. g3 {[%clk 0:03:00.4]} 3... c5 {[%clk 0:03:01.3]} 4. Nf3
{[%clk 0:03:01.9]} 4... cxd4 {[%clk 0:02:58.9]} 5. Nxd4 {[%clk 0:03:03.8]} 5...
d5 {[%clk 0:02:59.9]} 6. Bg2 {[%clk 0:03:03.5]} 6... e5 {[%clk 0:03:00.4]} 7.
Nf3 {[%clk 0:03:04]} 7... d4 {[%clk 0:02:56.1]} 8. O-O {[%clk 0:03:04.9]} 8...
Nc6 {[%clk 0:02:56.6]} 9. e3 {[%clk 0:03:06.4]} 9... Be7 {[%clk 0:02:52.2]} 10.
exd4 {[%clk 0:03:06.7]} 10... exd4 {[%clk 0:02:53.2]} 11. Bf4 {[%clk 0:03:08.3]}
11... Be6 {[%clk 0:02:50.2]} 12. Nbd2 {[%clk 0:03:07.6]} 12... O-O {[%clk
0:02:48.5]} 13. a3 {[%clk 0:03:08.4]} 13... a5 {[%clk 0:02:47.1]} 14. Ne5 {[%clk
0:03:07.7]} 14... Qb6 {[%clk 0:02:28.5]} 15. Re1 {[%clk 0:02:58.7]} 15... Qxb2
{[%clk 0:02:09.4]} 16. Rb1 {[%clk 0:02:49]} 16... Qxa3 {[%clk 0:02:10.1]} 17.
Rxb7 {[%clk 0:02:49.6]} 17... Nxe5 {[%clk 0:02:10.5]} 18. Bxe5 {[%clk
0:02:49.2]} 18... Bb4 {[%clk 0:01:46.9]} 19. Nb1 {[%clk 0:02:36.7]} 19... Qa2
{[%clk 0:01:34.4]} 20. Rxb4 {[%clk 0:02:23.9]} 20... axb4 {[%clk 0:01:33.6]} 21.
Bxa8 {[%clk 0:02:25.8]} 21... Rxa8 {[%clk 0:01:33.4]} 22. Qxd4 {[%clk
0:02:21.4]} 22... Qxc4 {[%clk 0:00:42.9]} 23. Bxf6 {[%clk 0:02:20.5]} 23... gxf6
{[%clk 0:00:44.8]} 24. Qxf6 {[%clk 0:02:19.7]} 24... Qd3 {[%clk 0:00:38.9]} 25.
Qg5+ {[%clk 0:02:07.1]} 25... Qg6 {[%clk 0:00:39]} 26. Qb5 {[%clk 0:02:01.3]}
26... b3 {[%clk 0:00:37.8]} 27. Nd2 {[%clk 0:02:01]} 27... Qc2 {[%clk
0:00:34.2]} 28. Ne4 {[%clk 0:01:59.3]} 28... b2 {[%clk 0:00:20.1]} 29. Qg5+
{[%clk 0:01:50.6]} 29... Kf8 {[%clk 0:00:20.1]} 30. Qh6+ {[%clk 0:01:08.6]}
30... Ke7 {[%clk 0:00:20.8]} 31. Qf6+ {[%clk 0:01:04.8]} 31... Kd7 {[%clk
0:00:21]} 32. Qd4+ {[%clk 0:01:01.1]} 32... Kc6 {[%clk 0:00:20.9]} 33. Qd6+
{[%clk 0:00:56.8]} 33... Kb5 {[%clk 0:00:21.9]} 34. Qe5+ {[%clk 0:00:48.3]}
34... Kb4 {[%clk 0:00:22.4]} 35. Qd4+ {[%clk 0:00:46.6]} 35... Ka3 {[%clk
0:00:20.6]} 36. Nc3 {[%clk 0:00:33.1]} 36... Rc8 {[%clk 0:00:09.3]} 37. Nb5+
{[%clk 0:00:32.9]} 37... Ka2 {[%clk 0:00:09.5]} 38. Qa7+ {[%clk 0:00:29.8]}
38... Kb3 {[%clk 0:00:08.8]} 39. Nd4+ {[%clk 0:00:29.2]} 39... Kc3 {[%clk
0:00:05.6]} 40. Nxc2 {[%clk 0:00:29.3]} 40... Kxc2 {[%clk 0:00:07.3]} 41. Qe3
{[%clk 0:00:22.2]} 41... b1=Q {[%clk 0:00:05.1]} 42. Qe4+ {[%clk 0:00:23.1]}
42... Kd2 {[%clk 0:00:06.3]} 43. Qxb1 {[%clk 0:00:24.4]} 1-0

[Event "*** Titled Tuesday Blitz"]
[Site "Chess.com"]
[Date "2019.01.01"]
[Round "8"]
[White "DanielNaroditsky"]
[Black "Peng_Li-Min"]
[Result "1/2-1/2"]
[WhiteElo "2917"]
[BlackElo "2693"]
[TimeControl "180+2"]
[EndTime "14:56:24 PST"]
[Termination "Game drawn - insufficient material"]

1. e4 {[%clk 0:03:01.9]} 1... Nc6 {[%clk 0:02:59.5]} 2. Nf3 {[%clk 0:02:59.9]}
2... d6 {[%clk 0:03:00.5]} 3. d4 {[%clk 0:03:01]} 3... Nf6 {[%clk 0:03:01.6]} 4.
Nc3 {[%clk 0:03:01.6]} 4... g6 {[%clk 0:03:03.2]} 5. Be2 {[%clk 0:02:50.6]} 5...
Bg7 {[%clk 0:03:04.3]} 6. O-O {[%clk 0:02:52.3]} 6... O-O {[%clk 0:03:05.9]} 7.
h3 {[%clk 0:02:51.5]} 7... e5 {[%clk 0:03:06.4]} 8. dxe5 {[%clk 0:02:53.4]} 8...
dxe5 {[%clk 0:03:08.1]} 9. Be3 {[%clk 0:02:51]} 9... Be6 {[%clk 0:03:07.6]} 10.
Qc1 {[%clk 0:02:48.5]} 10... Nd4 {[%clk 0:03:06.4]} 11. Rd1 {[%clk 0:02:41.8]}
11... c5 {[%clk 0:02:59.7]} 12. Ng5 {[%clk 0:02:21.5]} 12... Qe7 {[%clk
0:02:43.7]} 13. Nxe6 {[%clk 0:02:19.7]} 13... Qxe6 {[%clk 0:02:45.6]} 14. Bf1
{[%clk 0:02:18.7]} 14... Rfd8 {[%clk 0:02:41.1]} 15. a4 {[%clk 0:02:11.5]} 15...
c4 {[%clk 0:02:18.4]} 16. a5 {[%clk 0:02:06.6]} 16... Rac8 {[%clk 0:02:18.6]}
17. Ra4 {[%clk 0:01:53.6]} 17... b5 {[%clk 0:01:44.7]} 18. axb6 {[%clk
0:01:52.6]} 18... axb6 {[%clk 0:01:46.6]} 19. Ra6 {[%clk 0:01:52.8]} 19... Ra8
{[%clk 0:01:28.8]} 20. Rxa8 {[%clk 0:01:52.6]} 20... Rxa8 {[%clk 0:01:30.7]} 21.
Bxd4 {[%clk 0:01:54.3]} 21... exd4 {[%clk 0:01:32]} 22. Rxd4 {[%clk 0:01:56.2]}
22... Rc8 {[%clk 0:01:32]} 23. Qd2 {[%clk 0:01:54.2]} 23... Ne8 {[%clk
0:01:28.1]} 24. Rd8 {[%clk 0:01:29.1]} 24... Bxc3 {[%clk 0:01:14.3]} 25. bxc3
{[%clk 0:01:28.6]} 25... Rxd8 {[%clk 0:01:15.9]} 26. Qxd8 {[%clk 0:01:30.5]}
26... Qxe4 {[%clk 0:01:10.9]} 27. Qxb6 {[%clk 0:01:31.6]} 27... Qxc2 {[%clk
0:01:11.6]} 28. Qd8 {[%clk 0:01:30.1]} 28... Qe4 {[%clk 0:01:08.8]} 29. Bxc4
{[%clk 0:01:25.3]} 29... Kg7 {[%clk 0:01:09.6]} 30. Bf1 {[%clk 0:01:00.7]} 30...
Nf6 {[%clk 0:01:05.7]} 31. c4 {[%clk 0:01:02]} 31... Qe5 {[%clk 0:00:58.7]} 32.
Qd3 {[%clk 0:00:55.2]} 32... Ne4 {[%clk 0:00:57.5]} 33. Qe3 {[%clk 0:00:56.5]}
33... f5 {[%clk 0:00:55.3]} 34. g3 {[%clk 0:00:51.9]} 34... Kf6 {[%clk
0:00:52.2]} 35. Bg2 {[%clk 0:00:46.8]} 35... Nc5 {[%clk 0:00:44.3]} 36. Qh6
{[%clk 0:00:42.1]} 36... Qe1+ {[%clk 0:00:44.3]} 37. Kh2 {[%clk 0:00:43.5]}
37... Qxf2 {[%clk 0:00:42.8]} 38. Qf8+ {[%clk 0:00:40.2]} 38... Kg5 {[%clk
0:00:34.1]} 39. h4+ {[%clk 0:00:24.5]} 39... Kg4 {[%clk 0:00:35]} 40. Qd6 {[%clk
0:00:26.2]} 40... f4 {[%clk 0:00:32.5]} 41. gxf4 {[%clk 0:00:05.1]} 41... Qxf4+
{[%clk 0:00:34.4]} 42. Qxf4+ {[%clk 0:00:04.9]} 42... Kxf4 {[%clk 0:00:36.3]}
43. Bd5 {[%clk 0:00:06]} 43... h5 {[%clk 0:00:37.3]} 44. Bf7 {[%clk 0:00:06.9]}
44... Kg4 {[%clk 0:00:35.6]} 45. Bxg6 {[%clk 0:00:08.2]} 45... Kxh4 {[%clk
0:00:37.2]} 46. Kg2 {[%clk 0:00:09.9]} 46... Kg4 {[%clk 0:00:38.3]} 47. Kf2
{[%clk 0:00:10.4]} 47... Kf4 {[%clk 0:00:35.4]} 48. Bxh5 {[%clk 0:00:11.5]}
48... Ke4 {[%clk 0:00:37.1]} 49. Ke2 {[%clk 0:00:12.9]} 49... Kd4 {[%clk
0:00:38.5]} 50. Bf7 {[%clk 0:00:14.8]} 50... Ne4 {[%clk 0:00:37.5]} 51. c5
{[%clk 0:00:16.7]} 51... Nxc5 {[%clk 0:00:38.6]} 52. Bd5 {[%clk 0:00:18.1]}
52... Kxd5 {[%clk 0:00:39.8]} 1/2-1/2

[Event "*** Titled Tuesday Blitz"]
[Site "Chess.com"]
[Date "2019.01.01"]
[Round "8"]
[White "DryCounty"]
[Black "G_Threepwood"]
[Result "0-1"]
[WhiteElo "2718"]
[BlackElo "2526"]
[TimeControl "180+2"]
[EndTime "14:56:30 PST"]
[Termination "G_Threepwood won by checkmate"]

1. Nf3 {[%clk 0:03:01.9]} 1... g6 {[%clk 0:03:00.9]} 2. e4 {[%clk 0:03:02.3]}
2... Bg7 {[%clk 0:03:01.9]} 3. d4 {[%clk 0:03:02.8]} 3... d6 {[%clk 0:03:03.5]}
4. c3 {[%clk 0:03:03.4]} 4... Nf6 {[%clk 0:03:03.8]} 5. Bd3 {[%clk 0:03:04.8]}
5... O-O {[%clk 0:03:05.2]} 6. O-O {[%clk 0:03:06.1]} 6... Nc6 {[%clk
0:03:06.6]} 7. Na3 {[%clk 0:03:05.5]} 7... e5 {[%clk 0:03:04.1]} 8. Nc2 {[%clk
0:03:05.9]} 8... Re8 {[%clk 0:03:01.2]} 9. Re1 {[%clk 0:03:04.9]} 9... d5 {[%clk
0:02:32]} 10. exd5 {[%clk 0:03:02.9]} 10... Nxd5 {[%clk 0:02:29.6]} 11. Bg5
{[%clk 0:03:02.5]} 11... Bf6 {[%clk 0:02:04.9]} 12. Bxf6 {[%clk 0:03:00.9]}
12... Qxf6 {[%clk 0:02:06.8]} 13. Be4 {[%clk 0:02:51.1]} 13... Nf4 {[%clk
0:01:38]} 14. Bxc6 {[%clk 0:02:44.9]} 14... Qxc6 {[%clk 0:01:36.3]} 15. dxe5
{[%clk 0:02:32.4]} 15... Bg4 {[%clk 0:01:28.6]} 16. Ncd4 {[%clk 0:02:30.6]}
16... Qb6 {[%clk 0:01:21.1]} 17. Re4 {[%clk 0:02:27.2]} 17... Bxf3 {[%clk
0:01:15.3]} 18. Nxf3 {[%clk 0:02:25]} 18... Rad8 {[%clk 0:01:10.2]} 19. Qc2
{[%clk 0:02:18.4]} 19... Nd3 {[%clk 0:01:04.2]} 20. b3 {[%clk 0:02:05.3]} 20...
f6 {[%clk 0:01:02.3]} 21. Rd1 {[%clk 0:01:49.4]} 21... Nxf2 {[%clk 0:00:56.9]}
22. Rxd8 {[%clk 0:01:38.8]} 22... Nxe4+ {[%clk 0:00:57.2]} 23. Rd4 {[%clk
0:01:37.2]} 23... f5 {[%clk 0:00:43.8]} 24. Kh1 {[%clk 0:01:34.4]} 24... c5
{[%clk 0:00:42.7]} 25. Rd7 {[%clk 0:01:26.3]} 25... c4 {[%clk 0:00:29.6]} 26.
Rd4 {[%clk 0:01:26.1]} 26... cxb3 {[%clk 0:00:30.1]} 27. Qxb3+ {[%clk
0:01:22.1]} 27... Qxb3 {[%clk 0:00:31.5]} 28. axb3 {[%clk 0:01:22.9]} 28... Kf7
{[%clk 0:00:30.9]} 29. Kg1 {[%clk 0:01:16.9]} 29... Ke6 {[%clk 0:00:31.8]} 30.
Kf1 {[%clk 0:01:10.9]} 30... Nxc3 {[%clk 0:00:29.2]} 31. Rd6+ {[%clk 0:01:10.5]}
31... Ke7 {[%clk 0:00:28.9]} 32. Ng5 {[%clk 0:01:07.5]} 32... Ne4 {[%clk
0:00:29.1]} 33. Nxe4 {[%clk 0:00:51.7]} 33... fxe4 {[%clk 0:00:31]} 34. Ke2
{[%clk 0:00:52.2]} 34... Rc8 {[%clk 0:00:30.1]} 35. Ke3 {[%clk 0:00:47.6]} 35...
Rc3+ {[%clk 0:00:30.5]} 36. Kxe4 {[%clk 0:00:48.5]} 36... Rxb3 {[%clk
0:00:32.1]} 37. g4 {[%clk 0:00:38.6]} 37... Rb4+ {[%clk 0:00:29.1]} 38. Kd5
{[%clk 0:00:38.3]} 38... Rb6 {[%clk 0:00:16.5]} 39. Rxb6 {[%clk 0:00:22.4]}
39... axb6 {[%clk 0:00:18.4]} 40. h4 {[%clk 0:00:18.4]} 40... h6 {[%clk
0:00:12.4]} 41. h5 {[%clk 0:00:17.4]} 41... g5 {[%clk 0:00:13.3]} 42. e6 {[%clk
0:00:13.1]} 42... b5 {[%clk 0:00:13.7]} 43. Ke5 {[%clk 0:00:14.6]} 43... b4
{[%clk 0:00:14.7]} 44. Kf5 {[%clk 0:00:16.2]} 44... b3 {[%clk 0:00:16]} 45. Kg6
{[%clk 0:00:18.1]} 45... b2 {[%clk 0:00:17.5]} 46. Kxh6 {[%clk 0:00:19.6]} 46...
b1=Q {[%clk 0:00:18.9]} 47. Kg7 {[%clk 0:00:18.3]} 47... Qb2+ {[%clk 0:00:19.5]}
48. Kg8 {[%clk 0:00:19.3]} 48... Qf6 {[%clk 0:00:18.6]} 49. h6 {[%clk
0:00:20.2]} 49... Qg6+ {[%clk 0:00:18.3]} 50. Kh8 {[%clk 0:00:21]} 50... Qxh6+
{[%clk 0:00:19.8]} 51. Kg8 {[%clk 0:00:21.9]} 51... Qg6+ {[%clk 0:00:19.9]} 52.
Kh8 {[%clk 0:00:22.8]} 52... Kf6 {[%clk 0:00:21.4]} 53. e7 {[%clk 0:00:23.7]}
53... Qg7# {[%clk 0:00:23.3]} 0-1